fUSD/lending_fUSD_20250507
["ID","MTS","AMOUNT","RATE_DAILY","PERIOD"]
[360187383,1746610239886,-518.26,0.0001952,2]
[360187384,1746610239895,-487.30686379,0.0001952,2]
[360187385,1746610239904,-546.8,0.0001952,2]
[360187386,1746610239913,-450.0,0.0001952,2]
[360187387,1746610239922,-450.0,0.0001952,2]
[360187388,1746610239931,-853.62,0.0001952,2]
[360187389,1746610239940,-450.0,0.0001952,2]
[360187390,1746610239950,-450.0,0.0001952,2]
[360187391,1746610239959,-698.21,0.0001952,2]
[360187392,1746610239968,-677.65,0.0001952,2]
[360187393,1746610239977,-450.0,0.0001952,2]
[360187394,1746610239987,-453.69434651,0.0001952,2]
[360187395,1746610239996,-450.0,0.0001952,2]
[360187396,1746610240005,-450.0,0.0001952,2]
[360187397,1746610240014,-730.25,0.0001952,2]
[360187398,1746610240024,-450.0,0.0001952,2]
[360187399,1746610240033,-450.0,0.0001952,2]
[360187400,1746610240044,-858.94,0.0001952,2]
[360187401,1746610240053,-450.0,0.0001952,2]
[360187402,1746610240062,-275.47,0.0001952,2]
[360187403,1746610240071,-782.87,0.0001952,2]
[360187404,1746610240080,-450.0,0.0001952,2]
[360187405,1746610240089,-450.0,0.0001952,2]
[360187406,1746610240098,-450.0,0.0001952,2]
[360187407,1746610240107,-628.42,0.0001952,2]
[360187408,1746610240117,-503.29,0.0001952,2]
[360187409,1746610240126,-450.0,0.0001952,2]
[360187410,1746610240135,-450.0,0.0001952,2]
[360187411,1746610240144,-704.81,0.0001952,2]
[360187412,1746610240153,-1659.65,0.0001952,2]
[360187413,1746610240162,-507.80649319,0.0001952,2]
[360187414,1746610240171,-221.15,0.0001952,2]
[360187415,1746610240180,-1566.62,0.0001952,2]
[360187416,1746610240189,-25.12929614,0.0001952,2]
[360187417,1746610240303,250.0,0.00017,2]
[360187419,1746610240396,-424.87070386,0.0001952,2]
[360187420,1746610240405,-450.0,0.0001952,2]
[360187421,1746610240415,-450.0,0.0001952,2]
[360187422,1746610240424,-1115.47,0.0001952,2]
[360187423,1746610240434,-450.0,0.0001952,2]
[360187424,1746610240444,-450.0,0.0001952,2]
[360187425,1746610240454,-1512.95,0.0001952,2]
[360187426,1746610240463,-1940.21,0.0001952,2]
[360187427,1746610240472,-459.19981209,0.0001952,2]
[360187428,1746610240481,-450.0,0.0001952,2]
[360187429,1746610240490,-450.0,0.0001952,2]
[360187430,1746610240500,-450.0,0.0001952,2]
[360187431,1746610240509,-1763.13,0.0001952,2]
[360187432,1746610240518,-450.0,0.0001952,2]
[360187433,1746610240527,-420.66201582,0.0001952,2]
[360187434,1746610240537,-585.1,0.0001952,2]
[360187435,1746610240546,-450.0,0.0001952,2]
[360187436,1746610240555,-450.0,0.0001952,2]
[360187437,1746610240564,-450.0,0.0001952,2]
[360187438,1746610240573,-450.0,0.0001952,2]
[360187439,1746610240582,-450.0,0.0001952,2]
[360187440,1746610240591,-656.76,0.0001952,2]
[360187441,1746610240601,-231.17353544,0.0001952,2]
[360187442,1746610240610,-450.0,0.0001952,2]
[360187443,1746610240619,-1198.91,0.0001952,2]
[360187444,1746610240628,-2081.46,0.0001952,2]
[360187445,1746610240637,-717.03,0.0001952,2]
[360187446,1746610240646,-1046.04,0.0001952,2]
[360187447,1746610240655,-450.0,0.0001952,2]
[360187448,1746610240665,-450.0,0.0001952,2]
[360187449,1746610240674,-2981.3,0.0001952,2]
[360187450,1746610240683,-450.0,0.0001952,2]
[360187451,1746610240692,-450.0,0.0001952,2]
[360187452,1746610240701,-450.0,0.0001952,2]
[360187453,1746610240710,-450.0,0.0001952,2]
[360187454,1746610240720,-32605.88,0.0001952,2]
[360187455,1746610240729,-450.0,0.0001952,2]
[360187456,1746610240738,-450.0,0.0001952,2]
[360187457,1746610240746,-450.0,0.0001952,2]
[360187458,1746610240756,-546.86,0.0001952,2]
[360187459,1746610240765,-450.0,0.0001952,2]
[360187460,1746610240774,-450.0,0.0001952,2]
[360187461,1746610240788,-300.0,0.0001952,2]
[360187462,1746610240797,-661.41,0.0001952,2]
[360187463,1746610240806,-450.0,0.0001952,2]
[360187464,1746610240816,-450.0,0.0001952,2]
[360187465,1746610240825,-450.0,0.0001952,2]
[360187466,1746610240834,-70099.65,0.0001952,2]
[360187467,1746610240843,-450.0,0.0001952,2]
[360187468,1746610240852,-450.0,0.0001952,2]
[360187469,1746610240860,-450.0,0.0001952,2]
[360187470,1746610240869,-2397.72,0.0001952,2]
[360187471,1746610240878,-450.0,0.0001952,2]
[360187472,1746610240887,-866.75,0.0001952,2]
[360187473,1746610240897,-9003.56,0.0001952,2]
[360187474,1746610240906,-450.0,0.0001952,2]
[360187475,1746610240915,-713.96,0.0001952,2]
[360187476,1746610240924,-450.0,0.0001952,2]
[360187477,1746610240933,-797.71,0.0001952,2]
[360187478,1746610240942,-450.0,0.0001952,2]
[360187479,1746610240951,-450.0,0.0001952,2]
[360187480,1746610240961,-390.63974232,0.0001952,2]
[360187481,1746610240970,-450.0,0.0001952,2]
[360187482,1746610240979,-425.79717243,0.0001952,2]
[360187483,1746610240989,-17238.85,0.0001952,2]
[360187484,1746610240998,-487.76,0.0001952,2]
[360187485,1746610241007,-507.52800202,0.0001952,2]
[360187486,1746610241017,-450.0,0.0001952,2]
[360187487,1746610241026,-6312.81,0.0001952,2]
[360187488,1746610241036,-500.0,0.0001952,2]
[360187489,1746610241045,-450.0,0.0001952,2]
[360187490,1746610241054,-450.0,0.0001952,2]
[360187491,1746610241063,-987.62,0.0001952,2]
[360187492,1746610241073,-450.0,0.0001952,2]
[360187493,1746610241081,-500.0,0.0001952,2]
[360187494,1746610241091,-706.96,0.0001952,2]
[360187495,1746610241100,-1287.68,0.0001952,2]
[360187496,1746610241109,-624.58,0.0001952,2]
[360187497,1746610241118,-505.46,0.0001952,2]
[360187498,1746610241128,-209.81844165,0.0001952,2]
[360187499,1746610241137,-450.0,0.0001952,2]
[360187500,1746610241146,-450.0,0.0001952,2]
[360187501,1746610241156,-506.3570766,0.0001952,2]
[360187502,1746610241165,-450.0,0.0001952,2]
[360187503,1746610241174,-450.0,0.0001952,2]
[360187504,1746610241183,-450.0,0.0001952,2]
[360187505,1746610241192,-450.0,0.0001952,2]
[360187506,1746610241202,-450.0,0.0001952,2]
[360187507,1746610241211,-1553.93,0.0001952,2]
[360187508,1746610241221,-450.0,0.0001952,2]
[360187509,1746610241230,-2425.29,0.0001952,2]
[360187510,1746610241239,-692.54,0.0001952,2]
[360187511,1746610241248,-450.0,0.0001952,2]
[360187512,1746610241257,-474.13,0.0001952,2]
[360187513,1746610241266,-685.37,0.0001952,2]
[360187514,1746610241275,-450.0,0.0001952,2]
[360187515,1746610241285,-450.97815959,0.0001952,2]
[360187516,1746610241294,-480.95,0.0001952,2]
[360187517,1746610241303,-542.14,0.0001952,2]
[360187518,1746610241312,-450.0,0.0001952,2]
[360187519,1746610241321,-535.02095115,0.0001952,2]
[360187520,1746610241330,-450.0,0.0001952,2]
[360187521,1746610241349,-464.61,0.0001952,2]
[360187522,1746610241359,-450.0,0.0001952,2]
[360187523,1746610241369,-460.48273279,0.0001952,2]
[360187524,1746610241378,-450.0,0.0001952,2]
[360187525,1746610241387,-450.0,0.0001952,2]
[360187526,1746610241397,-450.0,0.0001952,2]
[360187527,1746610241406,-450.0,0.0001952,2]
[360187528,1746610241415,-450.0,0.0001952,2]
[360187529,1746610241424,-453.41391115,0.0001952,2]
[360187530,1746610241434,-450.0,0.0001952,2]
[360187531,1746610241444,-1525.89,0.0001952,2]
[360187532,1746610241453,-450.0,0.0001952,2]
[360187533,1746610241462,-450.0,0.0001952,2]
[360187534,1746610241473,-450.0,0.0001952,2]
[360187535,1746610241482,-536.98107033,0.0001952,2]
[360187536,1746610241492,-450.0,0.0001952,2]
[360187537,1746610241503,-450.0,0.0001952,2]
[360187538,1746610241512,-450.0,0.0001952,2]
[360187539,1746610241522,-450.0,0.0001952,2]
[360187540,1746610241531,-482.25,0.0001952,2]
[360187541,1746610241541,-510.67398185,0.0001952,2]
[360187542,1746610241550,-450.0,0.0001952,2]
[360187543,1746610241560,-450.0,0.00019521,2]
[360187544,1746610241570,-500.03567339,0.00019521,2]
[360187545,1746610241579,-1600.69,0.00019521,2]
[360187546,1746610241588,-1013.75,0.00019521,2]
[360187547,1746610241598,-450.0,0.00019521,2]
[360187548,1746610241608,-660.86,0.00019521,2]
[360187549,1746610241618,-450.0,0.00019521,2]
[360187550,1746610241627,-450.0,0.00019521,2]
[360187551,1746610241636,-432.04533287,0.00019521,2]
[360187552,1746610241646,-1027.04,0.00019521,2]
[360187553,1746610241656,-450.0,0.00019521,2]
[360187554,1746610241665,-450.0,0.00019521,2]
[360187555,1746610241674,-978.02,0.00019521,2]
[360187556,1746610241683,-537.54,0.00019521,2]
[360187557,1746610241693,-450.0,0.00019521,2]
[360187558,1746610241703,-513.46,0.00019521,2]
[360187559,1746610241712,-450.0,0.00019521,2]
[360187560,1746610241722,-537.64,0.00019521,2]
[360187561,1746610241733,-450.0,0.00019521,2]
[360187562,1746610241742,-450.0,0.00019521,2]
[360187563,1746610241751,-450.0,0.00019521,2]
[360187564,1746610241761,-450.0,0.00019521,2]
[360187565,1746610241770,-1266.04,0.00019521,2]
[360187566,1746610241781,-569.09,0.00019521,2]
[360187567,1746610241792,-585.98,0.00019521,2]
[360187568,1746610241802,-450.0,0.00019521,2]
[360187569,1746610241811,-450.0,0.00019522,2]
[360187570,1746610241822,-450.0,0.00019531,2]
[360187571,1746610241832,-450.0,0.00019531,2]
[360187572,1746610241842,-450.0,0.00019531,2]
[360187573,1746610241852,-450.0,0.00019531,2]
[360187574,1746610241863,-450.0,0.00019531,2]
[360187575,1746610241873,-450.0,0.00019531,2]
[360187576,1746610241883,-538.49,0.00019531,2]
[360187577,1746610241893,-450.0,0.00019531,2]
[360187578,1746610241903,-450.0,0.00019531,2]
[360187579,1746610242138,-1008.47,0.00019531,2]
[360187580,1746610242148,-549.50452412,0.00019531,2]
[360187581,1746610242157,-2034.72,0.00019531,2]
[360187582,1746610242167,-571.69461174,0.00019531,2]
[360187583,1746610242176,-450.0,0.00019531,2]
[360187584,1746610242185,-450.0,0.00019531,2]
[360187585,1746610242195,-641.68,0.00019531,2]
[360187586,1746610242205,-450.0,0.00019531,2]
[360187587,1746610242214,-1578.29,0.00019531,2]
[360187588,1746610242224,-163.20337775,0.00019531,2]
[360187589,1746610242233,-450.0,0.00019531,2]
[360187590,1746610242243,-450.0,0.00019531,2]
[360187593,1746610242252,-450.0,0.00019531,2]
[360187595,1746610242262,-450.0,0.00019531,2]
[360187596,1746610242271,-450.0,0.00019531,2]
[360187597,1746610242281,-450.0,0.00019531,2]
[360187598,1746610242291,-450.0,0.00019531,2]
[360187599,1746610242300,-500.57,0.00019532,2]
[360187600,1746610242309,-450.0,0.00019532,2]
[360187601,1746610242319,-458.59436279,0.00019532,2]
[360187602,1746610242328,-450.0,0.00019532,2]
[360187603,1746610242337,-578.50910194,0.00019532,2]
[360187604,1746610242346,-450.0,0.00019532,2]
[360187605,1746610242355,-450.0,0.00019532,2]
[360187606,1746610242365,-450.0,0.00019532,2]
[360187607,1746610242375,-450.0,0.00019532,2]
[360187608,1746610242384,-450.0,0.00019532,2]
[360187609,1746610242393,-450.0,0.00019532,2]
[360187610,1746610242403,-450.0,0.00019532,2]
[360187611,1746610242414,-450.0,0.00019532,2]
[360187613,1746610242424,-450.0,0.00019532,2]
[360187614,1746610242434,-450.0,0.00019532,2]
[360187615,1746610242444,-450.0,0.00019532,2]
[360187616,1746610242453,-450.0,0.00019532,2]
[360187617,1746610242463,-450.0,0.00019532,2]
[360187618,1746610242472,-372.37507029,0.00019532,2]
[360187619,1746610242482,-532.75276435,0.00019532,2]
[360187620,1746610242492,-607.39,0.00019532,2]
[360187621,1746610242502,-567.34,0.00019532,2]
[360187622,1746610242511,-596.15,0.00019532,2]
[360187623,1746610242520,-450.0,0.00019532,2]
[360187624,1746610242530,-450.0,0.00019532,2]
[360187625,1746610242540,-749.78,0.00019532,2]
[360187626,1746610242549,-518.26,0.00019532,2]
[360187627,1746610242559,-546.8,0.00019532,2]
[360187628,1746610242569,-853.62,0.00019532,2]
[360187630,1746610242579,-782.87,0.00019532,2]
[360187632,1746610242589,-1566.62,0.00019532,2]
[360187633,1746610242598,-1115.47,0.00019532,2]
[360187634,1746610242608,-450.0,0.00019532,2]
[360187635,1746610242618,-656.76,0.00019532,2]
[360187636,1746610242627,-450.0,0.00019532,2]
[360187637,1746610242637,-717.03,0.00019532,2]
[360187638,1746610242647,-450.0,0.00019532,2]
[360187639,1746610242656,-546.86,0.00019532,2]
[360187640,1746610242665,-450.0,0.00019532,2]
[360187641,1746610242675,-70099.65,0.00019532,2]
[360187642,1746610242685,-450.0,0.00019532,2]
[360187643,1746610242695,-450.0,0.00019532,2]
[360187644,1746610242705,-450.0,0.00019532,2]
[360187645,1746610242715,-450.0,0.00019532,2]
[360187646,1746610242725,-450.0,0.00019532,2]
[360187647,1746610242734,-500.0,0.00019532,2]
[360187648,1746610242743,-154.60300818,0.00019532,2]
[360187649,1746610242753,-1287.68,0.00019532,2]
[360187650,1746610242762,-624.58,0.00019532,2]
[360187651,1746610242771,-450.0,0.00019532,2]
[360187652,1746610242782,-2425.29,0.00019532,2]
[360187653,1746610242794,-692.54,0.00019532,2]
[360187654,1746610242804,-474.13,0.00019532,2]
[360187655,1746610242813,-542.14,0.00019532,2]
[360187656,1746610242823,-464.61,0.00019532,2]
[360187657,1746610242833,-450.0,0.00019532,2]
[360187658,1746610242843,-450.0,0.00019532,2]
[360187659,1746610242853,-450.0,0.00019532,2]
[360187660,1746610242864,-450.0,0.00019532,2]
[360187661,1746610242873,-450.0,0.00019532,2]
[360187662,1746610242883,-531.9868525,0.00019532,2]
[360187663,1746610242893,-450.0,0.00019532,2]
[360187664,1746610242902,-511.4071811,0.00019532,2]
[360187665,1746610242912,-482.25,0.00019532,2]
[360187666,1746610242922,-550.0,0.00019533,2]
[360187667,1746610242932,-450.0,0.00019533,2]
[360187668,1746610242942,-450.0,0.00019533,2]
[360187669,1746610242951,-473.5748037,0.00019533,2]
[360187671,1746610242961,-500.0,0.00019533,2]
[360187673,1746610242970,-191.865655,0.00019533,2]
[360187675,1746610242980,-450.0,0.00019533,2]
[360187677,1746610242989,-1158.18,0.00019533,2]
[360187678,1746610242999,-450.0,0.00019533,2]
[360187679,1746610243008,-450.0,0.00019533,2]
[360187681,1746610243017,-450.0,0.00019533,2]
[360187683,1746610243027,-450.0,0.00019533,2]
[360187684,1746610243036,-503.29,0.00019533,2]
[360187685,1746610243046,-704.81,0.00019533,2]
[360187686,1746610243055,-1659.65,0.00019533,2]
[360187687,1746610243065,-450.0,0.00019533,2]
[360187688,1746610243074,-450.0,0.00019533,2]
[360187689,1746610243084,-1600.69,0.00019533,2]
[360187690,1746610243093,-1512.95,0.00019533,2]
[360187691,1746610243103,-1940.21,0.00019533,2]
[360187692,1746610243113,-1013.75,0.00019533,2]
[360187693,1746610243122,-450.0,0.00019533,2]
[360187694,1746610243132,-1763.13,0.00019533,2]
[360187695,1746610243142,-450.0,0.00019533,2]
[360187696,1746610243151,-585.1,0.00019533,2]
[360187697,1746610243161,-450.0,0.00019533,2]
[360187698,1746610243171,-450.0,0.00019533,2]
[360187699,1746610243180,-450.0,0.00019533,2]
[360187700,1746610243190,-660.86,0.00019533,2]
[360187701,1746610243199,-1198.91,0.00019533,2]
[360187702,1746610243210,-2081.46,0.00019533,2]
[360187703,1746610243220,-151.0,0.00019533,2]
[360187704,1746610243230,-1046.04,0.00019533,2]
[360187705,1746610243240,-450.0,0.00019533,2]
[360187706,1746610243250,-450.0,0.00019533,2]
[360187707,1746610243260,-2981.3,0.00019533,2]
[360187708,1746610243269,-151.0,0.00019533,2]
[360187709,1746610243279,-450.0,0.00019533,2]
[360187710,1746610243289,-450.0,0.00019533,2]
[360187711,1746610243299,-450.0,0.00019533,2]
[360187712,1746610243309,-450.0,0.00019533,2]
[360187713,1746610243320,-32605.88,0.00019533,2]
[360187714,1746610243330,-535.8237422,0.00019533,2]
[360187715,1746610243339,-450.0,0.00019533,2]
[360187716,1746610243349,-450.0,0.00019533,2]
[360187717,1746610243359,-661.41,0.00019533,2]
[360187718,1746610243368,-450.0,0.00019533,2]
[360187719,1746610243378,-450.0,0.00019533,2]
[360187720,1746610243387,-2397.72,0.00019533,2]
[360187721,1746610243397,-151.0,0.00019533,2]
[360187722,1746610243406,-866.75,0.00019533,2]
[360187723,1746610243416,-450.0,0.00019533,2]
[360187724,1746610243426,-450.0,0.00019533,2]
[360187725,1746610243435,-9003.56,0.00019533,2]
[360187726,1746610243445,-713.96,0.00019533,2]
[360187727,1746610243454,-255.49301602,0.00019533,2]
[360187728,1746610243464,-797.71,0.00019533,2]
[360187729,1746610243473,-450.0,0.00019533,2]
[360187730,1746610243483,-450.0,0.00019533,2]
[360187731,1746610243493,-504.558914,0.00019533,2]
[360187732,1746610243503,-17238.85,0.00019533,2]
[360187733,1746610243512,-1027.04,0.00019533,2]
[360187734,1746610243522,-487.76,0.00019533,2]
[360187735,1746610243531,-538.49,0.00019533,2]
[360187736,1746610243541,-6312.81,0.00019533,2]
[360187737,1746610243550,-450.0,0.00019533,2]
[360187738,1746610243560,-450.0,0.00019533,2]
[360187739,1746610243570,-450.0,0.00019533,2]
[360187740,1746610243579,-987.62,0.00019533,2]
[360187741,1746610243589,-555.32,0.00019533,2]
[360187742,1746610243598,-1008.47,0.00019533,2]
[360187743,1746610243608,-706.96,0.00019533,2]
[360187744,1746610243618,-978.02,0.00019533,2]
[360187745,1746610243627,-537.54,0.00019533,2]
[360187746,1746610243636,-2034.72,0.00019533,2]
[360187747,1746610243645,-450.0,0.00019533,2]
[360187748,1746610243654,-450.0,0.00019533,2]
[360187749,1746610243664,-513.46,0.00019533,2]
[360187750,1746610243673,-450.0,0.00019533,2]
[360187751,1746610243683,-532.1,0.00019533,2]
[360187752,1746610243693,-334.81702702,0.00019533,2]
[360187753,1746610243702,-450.0,0.00019533,2]
[360187754,1746610243712,-450.0,0.00019533,2]
[360187755,1746610243722,-450.0,0.00019533,2]
[360187756,1746610243731,-320.04004433,0.00019533,2]
[360187757,1746610243741,-450.0,0.00019533,2]
[360187758,1746610243751,-1553.93,0.00019533,2]
[360187759,1746610243760,-235.81909282,0.00019533,2]
[360187760,1746610243769,-537.64,0.00019533,2]
[360187761,1746610243779,-450.0,0.00019533,2]
[360187762,1746610243793,-685.37,0.00019533,2]
[360187763,1746610243803,-641.68,0.00019533,2]
[360187764,1746610243813,-450.0,0.00019533,2]
[360187765,1746610243822,-450.0,0.00019533,2]
[360187766,1746610243832,-450.0,0.00019533,2]
[360187767,1746610243841,-450.0,0.00019533,2]
[360187768,1746610243851,-450.0,0.00019533,2]
[360187769,1746610243861,-480.95,0.00019533,2]
[360187770,1746610243870,-450.0,0.00019533,2]
[360187771,1746610243879,-1266.04,0.00019533,2]
[360187772,1746610243889,-450.0,0.00019533,2]
[360187773,1746610243898,-1578.29,0.00019533,2]
[360187774,1746610243907,-450.0,0.00019533,2]
[360187775,1746610243917,-450.0,0.00019533,2]
[360187776,1746610243927,-255.050708,0.00019533,2]
[360187777,1746610243936,-569.09,0.00019533,2]
[360187778,1746610243945,-1525.89,0.00019533,2]
[360187779,1746610243955,-255.050708,0.00019533,2]
[360187780,1746610243966,-450.0,0.00019533,2]
[360187781,1746610243975,-231.343748,0.00019533,2]
[360187782,1746610243984,-585.98,0.00019533,2]
[360187783,1746610243994,-231.343748,0.00019533,2]
[360187784,1746610244003,-450.0,0.00019533,2]
[360187785,1746610244012,-450.0,0.00019533,2]
[360187786,1746610244022,-450.0,0.00019533,2]
[360187787,1746610244031,-450.0,0.00019533,2]
[360187788,1746610244041,-151.0,0.00019533,2]
[360187789,1746610244050,-151.0,0.00019533,2]
[360187790,1746610244060,-450.0,0.00019533,2]
[360187791,1746610244069,-151.0,0.00019533,2]
[360187792,1746610244078,-151.0,0.00019533,2]
[360187793,1746610244088,-155.169129,0.00019533,2]
[360187794,1746610244097,-500.0,0.00019533,2]
[360187795,1746610244106,-169.92572376,0.00019533,2]
[360187796,1746610244116,-160.31985481,0.00019533,2]
[360187797,1746610244126,-155.21305963,0.00019533,2]
[360187798,1746610244135,-500.0,0.00019533,2]
[360187799,1746610244144,-500.0,0.00019533,2]
[360187800,1746610244153,-500.0,0.00019533,2]
[360187801,1746610244163,-500.0,0.00019533,2]
[360187802,1746610244173,-500.0,0.00019533,2]
[360187803,1746610244182,-500.0,0.00019533,2]
[360187804,1746610244191,-500.0,0.00019533,2]
[360187805,1746610244200,-500.0,0.00019533,2]
[360187806,1746610244209,-402.2781378,0.00019533,2]
[360187807,1746610244218,-500.0,0.00019533,2]
[360187808,1746610244228,-450.0,0.00019533,2]
[360187809,1746610244237,-450.0,0.00019534,2]
[360187810,1746610244246,-450.0,0.00019534,2]
[360187811,1746610244256,-450.0,0.00019534,2]
[360187812,1746610244265,-151.0,0.00019534,2]
[360187813,1746610244274,-151.0,0.00019534,2]
[360187814,1746610244284,-450.0,0.00019534,2]
[360187815,1746610244293,-151.0,0.00019534,2]
[360187816,1746610244302,-450.0,0.00019534,2]
[360187817,1746610244313,-151.0,0.00019534,2]
[360187818,1746610244322,-151.0,0.00019534,2]
[360187819,1746610244332,-450.0,0.00019534,2]
[360187820,1746610244341,-450.0,0.00019534,2]
[360187821,1746610244350,-450.0,0.00019534,2]
[360187822,1746610244360,-450.0,0.00019534,2]
[360187823,1746610244369,-450.0,0.00019534,2]
[360187824,1746610244379,-450.0,0.00019534,2]
[360187825,1746610244388,-151.0,0.00019534,2]
[360187826,1746610244397,-151.0,0.00019534,2]
[360187827,1746610244406,-450.0,0.00019534,2]
[360187828,1746610244416,-151.371387,0.00019534,2]
[360187829,1746610244425,-450.0,0.00019534,2]
[360187830,1746610244434,-450.0,0.00019534,2]
[360187831,1746610244500,-450.0,0.00019534,2]
[360187832,1746610244509,-450.0,0.00019534,2]
[360187833,1746610244519,-450.0,0.00019534,2]
[360187834,1746610244528,-251.777517,0.00019534,2]
[360187835,1746610244537,-387.93520438,0.00019534,2]
[360187836,1746610244547,-251.777517,0.00019534,2]
[360187837,1746610244556,-178.9,0.00019534,2]
[360187838,1746610244566,-450.0,0.00019534,2]
[360187839,1746610244575,-404.22059689,0.00019534,2]
[360187840,1746610244584,-596.88,0.00019534,2]
[360187841,1746610244593,-1101.06,0.00019534,2]
[360187842,1746610244602,-161.518022,0.00019534,2]
[360187843,1746610244612,-151.0,0.00019534,2]
[360187844,1746610244622,-154.019432,0.00019534,2]
[360187845,1746610244632,-151.0,0.00019534,2]
[360187846,1746610244641,-1159.2,0.00019534,2]
[360187847,1746610244651,-154.019432,0.00019534,2]
[360187848,1746610244660,-583.92,0.00019534,2]
[360187849,1746610244670,-151.0,0.00019534,2]
[360187850,1746610244680,-450.0,0.00019534,2]
[360187851,1746610244689,-450.0,0.00019534,2]
[360187852,1746610244698,-698.21,0.00019534,2]
[360187853,1746610244708,-677.65,0.00019534,2]
[360187854,1746610244718,-450.0,0.00019534,2]
[360187855,1746610244727,-730.25,0.00019534,2]
[360187856,1746610244737,-151.0,0.00019534,2]
[360187857,1746610244746,-450.0,0.00019534,2]
[360187858,1746610244756,-858.94,0.00019534,2]
[360187859,1746610244766,-193.34099805,0.00019534,2]
[360187860,1746610244776,-450.0,0.00019534,2]
[360187861,1746610244790,-450.0,0.00019534,2]
[360187862,1746610244800,-628.42,0.00019534,2]
[360187863,1746610244810,-162.205944,0.00019534,2]
[360187864,1746610244819,-151.0,0.00019534,2]
[360187865,1746610244829,-162.205944,0.00019534,2]
[360187866,1746610244839,-221.50525678,0.00019534,2]
[360187867,1746610244849,-216.119029,0.00019534,2]
[360187868,1746610244860,-450.0,0.00019534,2]
[360187869,1746610244870,-216.119029,0.00019534,2]
[360187870,1746610244879,-450.0,0.00019534,2]
[360187871,1746610244888,-157.616661,0.00019534,2]
[360187872,1746610244897,-474.70618997,0.00019534,2]
[360187873,1746610244907,-450.0,0.00019534,2]
[360187874,1746610244916,-157.616661,0.00019534,2]
[360187875,1746610244925,-151.0,0.00019534,2]
[360187876,1746610244935,-151.0,0.00019534,2]
[360187877,1746610244944,-151.0,0.00019534,2]
[360187878,1746610244953,-151.0,0.00019534,2]
[360187879,1746610244963,-450.0,0.00019534,2]
[360187880,1746610244972,-450.0,0.00019534,2]
[360187881,1746610244981,-270.712837,0.00019534,2]
[360187882,1746610244991,-450.0,0.00019534,2]
[360187883,1746610245000,-270.712837,0.00019534,2]
[360187884,1746610245010,-450.0,0.00019534,2]
[360187885,1746610245019,-450.0,0.00019534,2]
[360187886,1746610245029,-152.650933,0.00019534,2]
[360187887,1746610245040,-151.0,0.00019534,2]
[360187888,1746610245050,-151.0,0.00019534,2]
[360187889,1746610245059,-3925.7,0.00019535,2]
[360187890,1746610245067,-167.464,0.00019535,2]
[360187891,1746610245077,-151.0,0.00019535,2]
[360187892,1746610245086,-474.95988855,0.00019579,2]
[360187893,1746610245095,-634.22703634,0.0001958,2]
[360187894,1746610245383,184.94733102,0.00019,2]
[360187895,1746610245409,115.05266898,0.00019,2]